[Event "Live Chess"]
[Site "Chess.com"]
[Date "2024.06.01"]
[Round "-"]
[White "GEMdzq"]
[Black "Mangoalo"]
[Result "1-0"]
[WhiteElo "2287"]
[BlackElo "1060"]
[TimeControl "300"]
[EndTime "15:18:02 PDT"]
[Termination "GEMdzq won by resignation"]

1. e4 {[%clk 0:04:56.9]} 1... e6 {[%clk 0:04:52.6]} 2. d4 {[%clk 0:04:55.8]}
2... d5 {[%clk 0:04:51.1]} 3. Nc3 {[%clk 0:04:54.3]} 3... Bb4 {[%clk 0:04:47.1]}
4. e5 {[%clk 0:04:53.3]} 4... Nc6 {[%clk 0:04:44.3]} 5. Bb5 {[%clk 0:04:43.7]}
5... Bd7 {[%clk 0:04:41.8]} 6. Bxc6 {[%clk 0:04:34.1]} 6... Bxc6 {[%clk
0:04:41.7]} 7. Nf3 {[%clk 0:04:31.5]} 7... Ne7 {[%clk 0:04:29.9]} 8. O-O {[%clk
0:04:26.4]} 8... O-O {[%clk 0:04:15.6]} 9. Ne2 {[%clk 0:04:24.7]} 9... Bd7
{[%clk 0:04:06.6]} 10. c3 {[%clk 0:04:23.1]} 10... Ba5 {[%clk 0:04:05.6]} 11. b4
{[%clk 0:04:22]} 11... Bb6 {[%clk 0:04:04.3]} 12. a4 {[%clk 0:04:21.7]} 12... a6
{[%clk 0:03:55.3]} 13. Bg5 {[%clk 0:04:12]} 13... Qe8 {[%clk 0:03:46.1]} 14. a5
{[%clk 0:04:05.7]} 14... Ba7 {[%clk 0:03:44]} 15. Qc2 {[%clk 0:03:59.9]} 15...
Ng6 {[%clk 0:03:36.5]} 16. h4 {[%clk 0:03:50.1]} 16... h6 {[%clk 0:03:33.7]} 17.
Bd2 {[%clk 0:03:48.1]} 17... Nh8 {[%clk 0:03:29.7]} 18. Ng3 {[%clk 0:03:44.6]}
18... Qe7 {[%clk 0:03:20.4]} 19. h5 {[%clk 0:03:34.5]} 19... f6 {[%clk
0:03:15.6]} 20. exf6 {[%clk 0:03:32.4]} 20... Qxf6 {[%clk 0:03:15.5]} 21. Ne5
{[%clk 0:03:26.5]} 21... Bc6 {[%clk 0:03:10.7]} 22. Rae1 {[%clk 0:03:23.1]}
22... Rae8 {[%clk 0:03:05.6]} 23. Re3 {[%clk 0:03:22]} 23... Nf7 {[%clk
0:02:58.6]} 24. Ng6 {[%clk 0:03:18.9]} 24... Ng5 {[%clk 0:02:53.1]} 25. Nxf8
{[%clk 0:03:16.9]} 25... Rxf8 {[%clk 0:02:53]} 26. Re5 {[%clk 0:03:09.7]} 26...
Nf7 {[%clk 0:02:46.6]} 27. Ree1 {[%clk 0:02:54.3]} 27... b5 {[%clk 0:02:41.8]}
28. Qd3 {[%clk 0:02:46.6]} 28... Bd7 {[%clk 0:02:37.2]} 29. Qe2 {[%clk
0:02:31.6]} 29... Ng5 {[%clk 0:02:31.3]} 30. Qe5 {[%clk 0:02:29.5]} 30... Qxe5
{[%clk 0:02:29.4]} 31. Rxe5 {[%clk 0:02:29.4]} 31... Bb8 {[%clk 0:02:27.3]} 32.
Bxg5 {[%clk 0:02:26.1]} 32... hxg5 {[%clk 0:02:26.3]} 33. Rxg5 {[%clk 0:02:26]}
33... c6 {[%clk 0:02:25.2]} 34. h6 {[%clk 0:02:24.7]} 1-0

[Event "Live Chess"]
[Site "Chess.com"]
[Date "2024.06.01"]
[Round "-"]
[White "Ferrarifan27"]
[Black "lateforthesky"]
[Result "1-0"]
[WhiteElo "2115"]
[BlackElo "2119"]
[TimeControl "300"]
[EndTime "15:18:05 PDT"]
[Termination "Ferrarifan27 won by resignation"]

1. e4 {[%clk 0:04:54.8]} 1... c5 {[%clk 0:04:58.1]} 2. Nf3 {[%clk 0:04:49]} 2...
Nf6 {[%clk 0:04:57]} 3. Nc3 {[%clk 0:04:45.8]} 3... d5 {[%clk 0:04:54.9]} 4.
exd5 {[%clk 0:04:44.6]} 4... Nxd5 {[%clk 0:04:53.9]} 5. Bc4 {[%clk 0:04:40.8]}
5... e6 {[%clk 0:04:51.6]} 6. O-O {[%clk 0:04:36.9]} 6... Be7 {[%clk 0:04:50.8]}
7. Re1 {[%clk 0:04:35.8]} 7... Nc6 {[%clk 0:04:49.1]} 8. d3 {[%clk 0:04:30.5]}
8... O-O {[%clk 0:04:41.6]} 9. Bd2 {[%clk 0:04:21.1]} 9... Bf6 {[%clk
0:04:36.2]} 10. Rb1 {[%clk 0:04:16.2]} 10... b6 {[%clk 0:04:30.4]} 11. Ne4
{[%clk 0:04:13.9]} 11... Be7 {[%clk 0:04:24.7]} 12. a3 {[%clk 0:04:13]} 12... h6
{[%clk 0:04:19]} 13. Qe2 {[%clk 0:04:06.9]} 13... Nf6 {[%clk 0:04:09.9]} 14.
Rbd1 {[%clk 0:03:51.8]} 14... Nd4 {[%clk 0:04:03.9]} 15. Nxd4 {[%clk 0:03:50.3]}
15... cxd4 {[%clk 0:04:02.9]} 16. Qf3 {[%clk 0:03:38.3]} 16... Rb8 {[%clk
0:03:43.6]} 17. Qg3 {[%clk 0:03:31.5]} 17... Kh7 {[%clk 0:03:38]} 18. Nxf6+
{[%clk 0:03:27.1]} 18... Bxf6 {[%clk 0:03:33.6]} 19. Qxb8 {[%clk 0:03:25.6]}
19... Qd7 {[%clk 0:03:25.1]} 20. Qg3 {[%clk 0:03:19.3]} 20... Bb7 {[%clk
0:03:22.8]} 21. Bf4 {[%clk 0:03:03.7]} 21... Qc6 {[%clk 0:03:14.2]} 22. f3
{[%clk 0:02:49.1]} 22... b5 {[%clk 0:03:04.5]} 23. Bb3 {[%clk 0:02:47.6]} 23...
Re8 {[%clk 0:03:02.3]} 24. Be5 {[%clk 0:02:45]} 24... Bxe5 {[%clk 0:02:52.8]}
25. Qxe5 {[%clk 0:02:42.5]} 25... Rd8 {[%clk 0:02:46.1]} 26. Qe4+ {[%clk
0:02:40.4]} 26... Qxe4 {[%clk 0:02:43.8]} 27. fxe4 {[%clk 0:02:37.5]} 27... Kg6
{[%clk 0:02:40.1]} 28. Rf1 {[%clk 0:02:36.1]} 28... f6 {[%clk 0:02:36.3]} 29.
Rf3 {[%clk 0:02:34.7]} 29... e5 {[%clk 0:02:34.4]} 30. Rdf1 {[%clk 0:02:28.5]}
30... Bc8 {[%clk 0:02:27.2]} 31. Rg3+ {[%clk 0:02:25.3]} 1-0

[Event "Live Chess"]
[Site "Chess.com"]
[Date "2024.06.01"]
[Round "-"]
[White "A3ndrey9"]
[Black "Pandreq"]
[Result "0-1"]
[WhiteElo "1281"]
[BlackElo "1200"]
[TimeControl "300"]
[EndTime "15:18:07 PDT"]
[Termination "Pandreq won on time"]

1. Nf3 {[%clk 0:04:58.6]} 1... d5 {[%clk 0:04:58]} 2. d4 {[%clk 0:04:57.8]} 2...
Nc6 {[%clk 0:04:57.1]} 3. g3 {[%clk 0:04:56.6]} 3... Bf5 {[%clk 0:04:56.1]} 4.
Bg2 {[%clk 0:04:55.1]} 4... e6 {[%clk 0:04:54.8]} 5. Bf4 {[%clk 0:04:53.3]} 5...
Nb4 {[%clk 0:04:51.3]} 6. Na3 {[%clk 0:04:43.5]} 6... Nc6 {[%clk 0:04:41.8]} 7.
c4 {[%clk 0:04:39.1]} 7... Bxa3 {[%clk 0:04:37.8]} 8. bxa3 {[%clk 0:04:32.7]}
8... dxc4 {[%clk 0:04:33.2]} 9. O-O {[%clk 0:04:26.5]} 9... Nf6 {[%clk
0:04:16.2]} 10. Qa4 {[%clk 0:04:18.9]} 10... Nd5 {[%clk 0:04:07.9]} 11. Ne5
{[%clk 0:04:00.8]} 11... Nb6 {[%clk 0:03:52.2]} 12. Nxc6 {[%clk 0:03:56.1]}
12... Nxa4 {[%clk 0:03:48.2]} 13. Nxd8 {[%clk 0:03:43.8]} 13... Rxd8 {[%clk
0:03:46.2]} 14. Bxc7 {[%clk 0:03:38.7]} 14... Rxd4 {[%clk 0:03:42.1]} 15. Be5
{[%clk 0:03:26.1]} 15... Rd2 {[%clk 0:03:13.7]} 16. Bxg7 {[%clk 0:03:15.4]}
16... Rg8 {[%clk 0:03:13]} 17. Be5 {[%clk 0:03:10]} 17... Rxe2 {[%clk
0:03:08.7]} 18. Bxb7 {[%clk 0:03:07.4]} 18... Rxe5 {[%clk 0:03:03.5]} 19. Bc6+
{[%clk 0:03:05.2]} 19... Ke7 {[%clk 0:03:00.2]} 20. Bxa4 {[%clk 0:03:04]} 20...
Ra5 {[%clk 0:02:54.5]} 21. Bd1 {[%clk 0:02:49.8]} 21... Rxa3 {[%clk 0:02:48.6]}
22. Be2 {[%clk 0:02:43]} 22... Bd3 {[%clk 0:02:45.3]} 23. Bxd3 {[%clk
0:02:35.3]} 23... cxd3 {[%clk 0:02:43.8]} 24. Rfd1 {[%clk 0:02:34]} 24... Rd8
{[%clk 0:02:42.5]} 25. f4 {[%clk 0:02:31]} 25... d2 {[%clk 0:02:27.4]} 26. Kf2
{[%clk 0:02:26]} 26... Rad3 {[%clk 0:02:24]} 27. a4 {[%clk 0:02:20.2]} 27... Kf6
{[%clk 0:02:21.2]} 28. Ra2 {[%clk 0:02:19.2]} 28... Kf5 {[%clk 0:02:16.4]} 29.
h3 {[%clk 0:02:12.1]} 29... Ke4 {[%clk 0:02:12.6]} 30. Ke2 {[%clk 0:02:07.5]}
30... Re3+ {[%clk 0:02:06.5]} 31. Kf2 {[%clk 0:02:05.9]} 31... Rf3+ {[%clk
0:01:57]} 32. Kg2 {[%clk 0:02:00]} 32... Rfd3 {[%clk 0:01:46.6]} 33. a5 {[%clk
0:01:54.2]} 33... f5 {[%clk 0:01:44.9]} 34. Ra4+ {[%clk 0:01:39.2]} 34... Ke3
{[%clk 0:01:36.9]} 35. Kf1 {[%clk 0:01:29]} 35... Kf3 {[%clk 0:01:32]} 36. g4
{[%clk 0:01:10.9]} 36... fxg4 {[%clk 0:01:29.6]} 37. hxg4 {[%clk 0:01:08.2]}
37... Kxg4 {[%clk 0:01:25.2]} 38. Ke2 {[%clk 0:01:04.2]} 38... Rf3 {[%clk
0:01:12.6]} 39. Rxd2 {[%clk 0:00:52.5]} 39... Rxd2+ {[%clk 0:01:11]} 40. Kxd2
{[%clk 0:00:51.1]} 40... Rxf4 {[%clk 0:01:10.1]} 41. Ra3 {[%clk 0:00:42.5]}
41... h5 {[%clk 0:01:03.1]} 42. Rb3 {[%clk 0:00:39.7]} 42... Rf7 {[%clk
0:01:01.1]} 43. a6 {[%clk 0:00:33.8]} 43... Re7 {[%clk 0:00:59]} 44. Rb7 {[%clk
0:00:32.4]} 44... Re8 {[%clk 0:00:52.6]} 45. Rxa7 {[%clk 0:00:29.9]} 45... Rd8+
{[%clk 0:00:48.7]} 46. Ke3 {[%clk 0:00:25.9]} 46... Kg3 {[%clk 0:00:45]} 47.
Rg7+ {[%clk 0:00:24]} 47... Kh4 {[%clk 0:00:36.3]} 48. a7 {[%clk 0:00:22.6]}
48... Ra8 {[%clk 0:00:30.9]} 49. Kf4 {[%clk 0:00:15]} 49... Kh3 {[%clk
0:00:29.4]} 50. Kf3 {[%clk 0:00:10.9]} 50... Kh2 {[%clk 0:00:24.6]} 51. Kf2
{[%clk 0:00:09.5]} 51... h4 {[%clk 0:00:11.2]} 52. Rh7 {[%clk 0:00:04.4]} 52...
h3 {[%clk 0:00:07.9]} 53. Kf3 {[%clk 0:00:01.7]} 53... Rf8+ {[%clk 0:00:01.2]}
0-1

[Event "Live Chess"]
[Site "Chess.com"]
[Date "2024.06.01"]
[Round "-"]
[White "StoreySniper"]
[Black "updatedopenings2024"]
[Result "1-0"]
[WhiteElo "2547"]
[BlackElo "1958"]
[TimeControl "300"]
[EndTime "15:18:25 PDT"]
[Termination "StoreySniper won by resignation"]

1. e4 {[%clk 0:04:57.3]} 1... c6 {[%clk 0:04:58.5]} 2. d4 {[%clk 0:04:55.9]}
2... d5 {[%clk 0:04:58.4]} 3. Nc3 {[%clk 0:04:50]} 3... dxe4 {[%clk 0:04:56.7]}
4. Nxe4 {[%clk 0:04:49.3]} 4... Nf6 {[%clk 0:04:56.6]} 5. Nxf6+ {[%clk
0:04:47.5]} 5... exf6 {[%clk 0:04:56.5]} 6. Bc4 {[%clk 0:04:44.9]} 6... Bd6
{[%clk 0:04:55.3]} 7. Nf3 {[%clk 0:04:43.8]} 7... O-O {[%clk 0:04:54.3]} 8. O-O
{[%clk 0:04:43]} 8... Re8 {[%clk 0:04:53.5]} 9. h3 {[%clk 0:04:38.7]} 9... Nd7
{[%clk 0:04:52.7]} 10. c3 {[%clk 0:04:36.1]} 10... Nf8 {[%clk 0:04:52]} 11. Re1
{[%clk 0:04:33.6]} 11... Be6 {[%clk 0:04:50.9]} 12. Bxe6 {[%clk 0:04:31.7]}
12... Nxe6 {[%clk 0:04:50.8]} 13. Be3 {[%clk 0:04:29.9]} 13... Qc7 {[%clk
0:04:50.1]} 14. Qd2 {[%clk 0:04:28.5]} 14... Rad8 {[%clk 0:04:49.3]} 15. Re2
{[%clk 0:04:26.6]} 15... Nf4 {[%clk 0:04:47.5]} 16. Bxf4 {[%clk 0:04:25.4]}
16... Bxf4 {[%clk 0:04:47.4]} 17. Qc2 {[%clk 0:04:20.2]} 17... g6 {[%clk
0:04:44.1]} 18. Rae1 {[%clk 0:04:16.5]} 18... Qd7 {[%clk 0:04:43.3]} 19. Qa4
{[%clk 0:04:03.5]} 19... a6 {[%clk 0:04:34.3]} 20. d5 {[%clk 0:03:58.4]} 20...
Bc7 {[%clk 0:03:44.6]} 21. dxc6 {[%clk 0:03:51.5]} 21... bxc6 {[%clk 0:03:44.5]}
22. Qxa6 {[%clk 0:03:47.2]} 22... Rxe2 {[%clk 0:03:37.7]} 23. Qxe2 {[%clk
0:03:45.2]} 23... Ra8 {[%clk 0:03:32.2]} 24. a3 {[%clk 0:03:41.2]} 24... Rb8
{[%clk 0:03:28.1]} 25. b4 {[%clk 0:03:39.4]} 25... c5 {[%clk 0:03:26.4]} 26. Qc4
{[%clk 0:03:30.9]} 26... cxb4 {[%clk 0:03:22.8]} 27. axb4 {[%clk 0:03:28.4]}
27... Bb6 {[%clk 0:03:20.7]} 28. Qe2 {[%clk 0:03:21.1]} 28... Rc8 {[%clk
0:03:10.9]} 29. c4 {[%clk 0:03:15.9]} 29... Qa4 {[%clk 0:02:57.8]} 30. c5 {[%clk
0:03:12.1]} 30... Bxc5 {[%clk 0:02:46.2]} 31. bxc5 {[%clk 0:03:10.4]} 31... Rxc5
{[%clk 0:02:46.1]} 32. Qe8+ {[%clk 0:03:08.3]} 32... Qxe8 {[%clk 0:02:44.9]} 33.
Rxe8+ {[%clk 0:03:07.9]} 33... Kg7 {[%clk 0:02:44.8]} 34. Re7 {[%clk 0:03:06.3]}
34... Rc1+ {[%clk 0:02:43.9]} 35. Kh2 {[%clk 0:03:05]} 35... Rc2 {[%clk
0:02:43.5]} 36. Kg3 {[%clk 0:03:03.5]} 36... Ra2 {[%clk 0:02:42.3]} 37. Nd4
{[%clk 0:03:01.9]} 37... Ra3+ {[%clk 0:02:40.9]} 38. f3 {[%clk 0:03:00.5]} 38...
f5 {[%clk 0:02:38.6]} 39. Rb7 {[%clk 0:02:55.3]} 39... h5 {[%clk 0:02:37.4]} 40.
h4 {[%clk 0:02:53.3]} 40... Ra4 {[%clk 0:02:31.7]} 41. Nc6 {[%clk 0:02:51.1]}
41... f4+ {[%clk 0:02:24.7]} 42. Kh2 {[%clk 0:02:46.5]} 1-0

[Event "Live Chess"]
[Site "Chess.com"]
[Date "2024.06.01"]
[Round "-"]
[White "RichardABates"]
[Black "koekoekoe"]
[Result "1-0"]
[WhiteElo "2266"]
[BlackElo "1990"]
[TimeControl "300"]
[EndTime "15:18:32 PDT"]
[Termination "RichardABates won by checkmate"]

1. d4 {[%clk 0:04:57.1]} 1... d5 {[%clk 0:04:59.9]} 2. c4 {[%clk 0:04:55]} 2...
e6 {[%clk 0:04:58.6]} 3. Nf3 {[%clk 0:04:53.4]} 3... Nf6 {[%clk 0:04:58]} 4. g3
{[%clk 0:04:52.1]} 4... Bb4+ {[%clk 0:04:55.5]} 5. Bd2 {[%clk 0:04:50.5]} 5...
Bxd2+ {[%clk 0:04:52.8]} 6. Qxd2 {[%clk 0:04:49]} 6... O-O {[%clk 0:04:51.8]} 7.
Bg2 {[%clk 0:04:48.1]} 7... dxc4 {[%clk 0:04:47.9]} 8. O-O {[%clk 0:04:46.2]}
8... c6 {[%clk 0:04:47]} 9. a4 {[%clk 0:04:42.4]} 9... Qb6 {[%clk 0:04:43]} 10.
Na3 {[%clk 0:04:40]} 10... Nbd7 {[%clk 0:04:29.5]} 11. Nxc4 {[%clk 0:04:37.5]}
11... Qc7 {[%clk 0:04:27.7]} 12. b4 {[%clk 0:04:32.3]} 12... Nd5 {[%clk
0:04:26.7]} 13. e4 {[%clk 0:04:27.8]} 13... Ne7 {[%clk 0:04:26.3]} 14. a5 {[%clk
0:04:22.1]} 14... Nf6 {[%clk 0:04:24.7]} 15. e5 {[%clk 0:04:12.1]} 15... Nfd5
{[%clk 0:04:23.8]} 16. Nd6 {[%clk 0:04:08.8]} 16... Bd7 {[%clk 0:04:18.6]} 17.
h4 {[%clk 0:03:50.4]} 17... Nc8 {[%clk 0:04:17.3]} 18. Ne4 {[%clk 0:03:46.7]}
18... Nce7 {[%clk 0:04:09.9]} 19. h5 {[%clk 0:03:41.6]} 19... h6 {[%clk
0:04:05.2]} 20. g4 {[%clk 0:03:35.5]} 20... f5 {[%clk 0:03:55.1]} 21. exf6
{[%clk 0:03:32]} 21... Nxf6 {[%clk 0:03:54.6]} 22. Ne5 {[%clk 0:03:28]} 22...
Ned5 {[%clk 0:03:39.9]} 23. g5 {[%clk 0:03:20.8]} 23... Nxe4 {[%clk 0:03:32.4]}
24. Bxe4 {[%clk 0:03:18.7]} 24... hxg5 {[%clk 0:03:17.3]} 25. Qxg5 {[%clk
0:03:16.7]} 25... Qd8 {[%clk 0:03:16.8]} 26. Qg6 {[%clk 0:03:10.2]} 26... Nf6
{[%clk 0:03:13.2]} 27. Bc2 {[%clk 0:03:00.5]} 27... Qe8 {[%clk 0:03:06.4]} 28.
Bb3 {[%clk 0:02:57.1]} 28... Qxg6+ {[%clk 0:03:02.3]} 29. hxg6 {[%clk
0:02:51.9]} 29... Rfd8 {[%clk 0:03:00.1]} 30. Nxd7 {[%clk 0:02:47.2]} 30... Nxd7
{[%clk 0:02:56.4]} 31. Bxe6+ {[%clk 0:02:45.8]} 31... Kf8 {[%clk 0:02:55.9]} 32.
d5 {[%clk 0:02:39.2]} 32... Ne5 {[%clk 0:02:48]} 33. f4 {[%clk 0:02:33.3]} 33...
Nxg6 {[%clk 0:02:43.2]} 34. f5 {[%clk 0:02:27.5]} 34... Ne5 {[%clk 0:02:38.9]}
35. Rae1 {[%clk 0:02:22.5]} 35... Nd3 {[%clk 0:02:32.8]} 36. Re3 {[%clk
0:02:19]} 36... Nxb4 {[%clk 0:02:29.7]} 37. f6 {[%clk 0:02:15.9]} 37... Nxd5
{[%clk 0:02:22.1]} 38. fxg7+ {[%clk 0:02:11.3]} 38... Kxg7 {[%clk 0:02:18.1]}
39. Rf7+ {[%clk 0:02:04.8]} 39... Kg6 {[%clk 0:02:11.8]} 40. Rg3+ {[%clk
0:01:59.2]} 40... Kh6 {[%clk 0:02:03.9]} 41. Bf5 {[%clk 0:01:57.8]} 41... Rh8
{[%clk 0:01:54.6]} 42. Rfg7 {[%clk 0:01:53]} 42... Nf6 {[%clk 0:01:43.9]} 43.
R7g6+ {[%clk 0:01:50.3]} 43... Kh5 {[%clk 0:01:43]} 44. Rh3# {[%clk 0:01:48.8]}
1-0

[Event "Live Chess"]
[Site "Chess.com"]
[Date "2024.06.01"]
[Round "-"]
[White "blunderabit"]
[Black "jimwad"]
[Result "0-1"]
[WhiteElo "1787"]
[BlackElo "1305"]
[TimeControl "300"]
[EndTime "15:18:50 PDT"]
[Termination "jimwad won on time"]

1. e4 {[%clk 0:04:57.1]} 1... e5 {[%clk 0:04:58.8]} 2. Nc3 {[%clk 0:04:54.1]}
2... Nf6 {[%clk 0:04:57.4]} 3. d4 {[%clk 0:04:51.8]} 3... d6 {[%clk 0:04:54]} 4.
Nf3 {[%clk 0:04:40.5]} 4... Nc6 {[%clk 0:04:52.1]} 5. Bb5 {[%clk 0:04:28]} 5...
Bd7 {[%clk 0:04:49.9]} 6. O-O {[%clk 0:04:26]} 6... Be7 {[%clk 0:04:48.8]} 7.
Re1 {[%clk 0:04:17.4]} 7... O-O {[%clk 0:04:47.5]} 8. d5 {[%clk 0:04:15.1]} 8...
Nb8 {[%clk 0:04:44.8]} 9. Bf1 {[%clk 0:04:13.3]} 9... c6 {[%clk 0:04:40.3]} 10.
h3 {[%clk 0:04:06.9]} 10... cxd5 {[%clk 0:04:38.1]} 11. Nxd5 {[%clk 0:04:05.2]}
11... Bc6 {[%clk 0:04:36.2]} 12. Nxf6+ {[%clk 0:03:58.7]} 12... Bxf6 {[%clk
0:04:33.8]} 13. a4 {[%clk 0:03:51.3]} 13... a6 {[%clk 0:04:29.4]} 14. a5 {[%clk
0:03:41.4]} 14... Qe7 {[%clk 0:04:27.8]} 15. Bd2 {[%clk 0:03:38.3]} 15... Nd7
{[%clk 0:04:24.8]} 16. Bb4 {[%clk 0:03:36.1]} 16... Nc5 {[%clk 0:04:14]} 17.
Bxc5 {[%clk 0:03:32.7]} 17... dxc5 {[%clk 0:04:12.9]} 18. Bc4 {[%clk 0:03:20.7]}
18... Bb5 {[%clk 0:03:53.4]} 19. Bd5 {[%clk 0:03:16.4]} 19... Bc6 {[%clk
0:03:49]} 20. Ra3 {[%clk 0:02:53.2]} 20... Rfd8 {[%clk 0:03:46.3]} 21. Rd3
{[%clk 0:02:47.5]} 21... Bb5 {[%clk 0:03:42.9]} 22. c4 {[%clk 0:02:44.4]} 22...
Bc6 {[%clk 0:03:36.9]} 23. Qd2 {[%clk 0:02:35.6]} 23... h6 {[%clk 0:03:33.8]}
24. Rd1 {[%clk 0:02:33.2]} 24... Ba4 {[%clk 0:03:26.2]} 25. b3 {[%clk
0:02:26.5]} 25... Bc6 {[%clk 0:03:24.8]} 26. Bxc6 {[%clk 0:02:24.3]} 26... bxc6
{[%clk 0:03:20.2]} 27. Rxd8+ {[%clk 0:02:18.7]} 27... Rxd8 {[%clk 0:03:18]} 28.
Qxd8+ {[%clk 0:02:18.1]} 28... Qxd8 {[%clk 0:03:12.9]} 29. Rxd8+ {[%clk
0:02:17.6]} 29... Bxd8 {[%clk 0:03:11.7]} 30. Nxe5 {[%clk 0:02:17]} 30... Bxa5
{[%clk 0:03:05.1]} 31. Nxc6 {[%clk 0:02:15.4]} 31... Bc3 {[%clk 0:02:59.2]} 32.
Nb8 {[%clk 0:01:59.1]} 32... a5 {[%clk 0:02:57.6]} 33. Nd7 {[%clk 0:01:57.6]}
33... f6 {[%clk 0:02:54.6]} 34. Nxc5 {[%clk 0:01:53.5]} 34... Kf7 {[%clk
0:02:50.6]} 35. Nd3 {[%clk 0:01:48]} 35... Ke6 {[%clk 0:02:48.4]} 36. Kf1 {[%clk
0:01:45.9]} 36... g5 {[%clk 0:02:43]} 37. g4 {[%clk 0:01:42.6]} 37... Kd6 {[%clk
0:02:39.7]} 38. Ke2 {[%clk 0:01:40.6]} 38... Ke6 {[%clk 0:02:33.2]} 39. Ke3
{[%clk 0:01:38.9]} 39... Kd6 {[%clk 0:02:32]} 40. f4 {[%clk 0:01:37.3]} 40...
Ke6 {[%clk 0:02:15.6]} 41. fxg5 {[%clk 0:01:08.5]} 41... hxg5 {[%clk 0:02:14.3]}
42. Nf2 {[%clk 0:01:01.2]} 42... Ke5 {[%clk 0:02:10.8]} 43. Nh1 {[%clk
0:00:58.4]} 43... Bd4+ {[%clk 0:02:08.9]} 44. Kf3 {[%clk 0:00:52.9]} 44... Bc3
{[%clk 0:01:53.9]} 45. Ng3 {[%clk 0:00:50.8]} 45... Be1 {[%clk 0:01:45.5]} 46.
Nf5 {[%clk 0:00:47]} 46... Bb4 {[%clk 0:01:36.5]} 47. Ne3 {[%clk 0:00:36.5]}
47... Bc5 {[%clk 0:01:24]} 48. Nd5 {[%clk 0:00:34.7]} 48... Ba3 {[%clk
0:01:08.7]} 49. Kg3 {[%clk 0:00:30.9]} 49... Bc1 {[%clk 0:01:04.9]} 50. h4
{[%clk 0:00:28.3]} 50... gxh4+ {[%clk 0:00:59.7]} 51. Kxh4 {[%clk 0:00:26.8]}
51... Bg5+ {[%clk 0:00:58.4]} 52. Kg3 {[%clk 0:00:22.5]} 52... Kxe4 {[%clk
0:00:56.8]} 53. Ne7 {[%clk 0:00:15.4]} 53... f5 {[%clk 0:00:48.8]} 54. gxf5
{[%clk 0:00:10.9]} 54... Bxe7 {[%clk 0:00:47.1]} 55. Kg4 {[%clk 0:00:02.7]}
55... Bf6 {[%clk 0:00:44]} 0-1

[Event "Live Chess"]
[Site "Chess.com"]
[Date "2024.06.01"]
[Round "-"]
[White "NebodarMatevich"]
[Black "Crowded_House"]
[Result "1-0"]
[WhiteElo "1570"]
[BlackElo "1726"]
[TimeControl "300"]
[EndTime "15:19:01 PDT"]
[Termination "NebodarMatevich won by checkmate"]

1. e4 {[%clk 0:04:59.8]} 1... e6 {[%clk 0:04:59.3]} 2. b3 {[%clk 0:04:58.3]}
2... d5 {[%clk 0:04:57.8]} 3. Bb2 {[%clk 0:04:57.9]} 3... dxe4 {[%clk
0:04:52.5]} 4. Nc3 {[%clk 0:04:57.4]} 4... Nf6 {[%clk 0:04:49.8]} 5. Qe2 {[%clk
0:04:56.7]} 5... Bd6 {[%clk 0:04:39.6]} 6. Nxe4 {[%clk 0:04:52.2]} 6... Nbd7
{[%clk 0:04:35.6]} 7. O-O-O {[%clk 0:04:50.1]} 7... O-O {[%clk 0:04:32.4]} 8. g3
{[%clk 0:04:42.5]} 8... Be7 {[%clk 0:04:28]} 9. f4 {[%clk 0:04:35.4]} 9... b6
{[%clk 0:04:17.1]} 10. Bg2 {[%clk 0:04:34.5]} 10... Rb8 {[%clk 0:04:15.1]} 11.
Nxf6+ {[%clk 0:04:31.6]} 11... Nxf6 {[%clk 0:04:13.5]} 12. h4 {[%clk 0:04:28.4]}
12... Bb7 {[%clk 0:04:11.9]} 13. Bxb7 {[%clk 0:04:27.1]} 13... Rxb7 {[%clk
0:04:11]} 14. Nh3 {[%clk 0:04:25.8]} 14... Rb8 {[%clk 0:03:53.8]} 15. g4 {[%clk
0:04:24]} 15... Nd5 {[%clk 0:03:46.1]} 16. g5 {[%clk 0:04:20.3]} 16... Bd6
{[%clk 0:03:35.3]} 17. Rhf1 {[%clk 0:04:17.8]} 17... c5 {[%clk 0:03:27.6]} 18.
h5 {[%clk 0:04:14.2]} 18... Qc7 {[%clk 0:03:23]} 19. h6 {[%clk 0:04:05.5]} 19...
g6 {[%clk 0:03:13.8]} 20. Qf3 {[%clk 0:03:28.7]} 20... Ne7 {[%clk 0:03:09.1]}
21. Qc3 {[%clk 0:03:00.3]} 21... f6 {[%clk 0:02:53.6]} 22. gxf6 {[%clk
0:02:55.5]} 22... Nf5 {[%clk 0:02:20.2]} 23. Ng5 {[%clk 0:02:44.7]} 23... Qd7
{[%clk 0:02:04.8]} 24. f7+ {[%clk 0:02:36.3]} 24... Rxf7 {[%clk 0:01:53.5]} 25.
Qh8# {[%clk 0:02:35]} 1-0

[Event "Live Chess"]
[Site "Chess.com"]
[Date "2024.06.01"]
[Round "-"]
[White "SavagePawn7"]
[Black "f4nomore"]
[Result "0-1"]
[WhiteElo "658"]
[BlackElo "1253"]
[TimeControl "300"]
[EndTime "15:19:23 PDT"]
[Termination "f4nomore won by checkmate"]

1. e4 {[%clk 0:04:55.4]} 1... g6 {[%clk 0:04:59.9]} 2. d4 {[%clk 0:04:53.1]}
2... Bg7 {[%clk 0:04:58.7]} 3. Nf3 {[%clk 0:04:46.5]} 3... d6 {[%clk 0:04:57.8]}
4. Bg5 {[%clk 0:04:43.3]} 4... h6 {[%clk 0:04:54.9]} 5. Be3 {[%clk 0:04:35]}
5... Nd7 {[%clk 0:04:51.1]} 6. Nc3 {[%clk 0:04:32.8]} 6... b6 {[%clk 0:04:49.2]}
7. Bd3 {[%clk 0:04:26.4]} 7... Bb7 {[%clk 0:04:47.5]} 8. Qd2 {[%clk 0:04:11.7]}
8... Ndf6 {[%clk 0:04:44.9]} 9. e5 {[%clk 0:04:00.2]} 9... Ng4 {[%clk
0:04:42.4]} 10. exd6 {[%clk 0:03:46.9]} 10... cxd6 {[%clk 0:04:38]} 11. h3
{[%clk 0:03:36.7]} 11... Nxe3 {[%clk 0:04:36]} 12. Qxe3 {[%clk 0:03:33.9]} 12...
Bxf3 {[%clk 0:04:29.8]} 13. Qxf3 {[%clk 0:03:29.1]} 13... Nf6 {[%clk 0:04:26.5]}
14. Ne4 {[%clk 0:03:17.4]} 14... O-O {[%clk 0:04:18.6]} 15. O-O-O {[%clk
0:03:10.8]} 15... Kh7 {[%clk 0:04:14.9]} 16. g4 {[%clk 0:02:46.7]} 16... Rc8
{[%clk 0:04:11.9]} 17. g5 {[%clk 0:02:40.5]} 17... Nxe4 {[%clk 0:04:09.9]} 18.
Bxe4 {[%clk 0:02:38]} 18... h5 {[%clk 0:04:08.4]} 19. d5 {[%clk 0:02:02.5]}
19... e6 {[%clk 0:03:52.1]} 20. dxe6 {[%clk 0:01:59.3]} 20... Qxg5+ {[%clk
0:03:43.6]} 21. Kb1 {[%clk 0:01:52.8]} 21... fxe6 {[%clk 0:03:35.2]} 22. Qb3
{[%clk 0:01:17.4]} 22... Qe5 {[%clk 0:03:23.7]} 23. Rde1 {[%clk 0:01:06.9]}
23... Qf6 {[%clk 0:02:55.2]} 24. Rhg1 {[%clk 0:01:00.4]} 24... Kh8 {[%clk
0:02:51.8]} 25. Bxg6 {[%clk 0:00:46.9]} 25... Qxf2 {[%clk 0:02:32.4]} 26. Bxh5
{[%clk 0:00:33.4]} 26... Qh4 {[%clk 0:02:03.4]} 27. Be2 {[%clk 0:00:23.8]} 27...
d5 {[%clk 0:01:56.7]} 28. Ref1 {[%clk 0:00:19.3]} 28... Rxf1+ {[%clk 0:01:52.5]}
29. Rxf1 {[%clk 0:00:18.1]} 29... Qe4 {[%clk 0:01:39.9]} 30. Qg3 {[%clk
0:00:13.4]} 30... Qxe2 {[%clk 0:01:32.6]} 31. Re1 {[%clk 0:00:07.4]} 31... Qxc2+
{[%clk 0:01:29.3]} 32. Ka1 {[%clk 0:00:05.9]} 32... Qxb2# {[%clk 0:01:27.9]} 0-1